bitfinex/quotes_ETHUSD_20240709
["timestamp","ask_amount","ask_price","bid_price","bid_amount"]
[1720543347983,6.40664062,3075.1,3074.7,3.25228]
[1720543348353,12.2,3075.4,3075.1,3.25192]
[1720543348688,12.2,3075.4,3074.5,8.99223]
[1720543348689,6.40664062,3075.8,3075.4,3.25159]
[1720543348860,6.40664062,3075.8,3075.6,3.25134]
[1720543349441,6.40664062,3075.8,3075.6,3.25131]
[1720543349666,6.40664062,3076.3,3075.8,3.25117]
[1720543349870,2.17246099,3076.4,3075.8,3.25117]
[1720543350274,1.4925381,3076.2,3075.8,3.25117]
[1720543350595,0.67992289,3076.5,3075.8,3.25109]
[1720543350596,1.4925381,3076.4,3075.8,3.25109]
[1720543350874,19.62652496,3076.6,3075.8,3.25109]
[1720543350875,1.4925381,3076.1,3075.9,3.251]
[1720543351095,1.4925381,3076.1,3075.6,3.25135]
[1720543351242,1.4925381,3075.7,3075.3,3.0]
[1720543351437,1.01937187,3076.5,3075.2,3.25174]
[1720543351438,2.17211935,3075.9,3075.2,3.25174]
[1720543351642,1.4925381,3075.7,3075.2,3.25173]
[1720543352359,1.4925381,3075.5,3075.2,3.25173]
[1720543352698,1.4925381,3075.3,3074.9,2.4391]
[1720543353399,1.4925381,3075.3,3074.5,5.69485]
[1720543353550,6.40664062,3075.5,3075.1,3.25191]
[1720543353751,6.40664062,3075.5,3075.3,3.25161]
[1720543353957,13.6925381,3076.2,3075.3,3.25161]
[1720543353958,2.17237978,3075.9,3075.4,3.25159]
[1720543354269,1.4925381,3075.7,3074.9,3.44]
[1720543354590,1.4925381,3075.7,3075.0,3.0]
[1720543354591,1.4925381,3075.4,3075.0,3.0]
[1720543355650,0.67984168,3075.7,3075.1,3.25184]
[1720543355968,1.4925381,3075.7,3075.1,3.25184]
[1720543356471,2.17237978,3075.7,3075.0,3.0]
[1720543356672,0.831869,3075.6,3075.0,3.0]
[1720543356877,0.15202732,3075.5,3075.0,3.0]
[1720543357100,1.4925381,3075.4,3075.0,3.0]
[1720543357397,0.67984168,3075.5,3075.0,6.252]
[1720543357398,1.4925381,3075.5,3075.0,6.252]
[1720543357570,2.17237978,3075.7,3075.1,3.2519]
[1720543357769,1.4925381,3075.5,3075.1,3.2519]
[1720543357974,2.17237978,3075.7,3075.1,3.2519]
[1720543358382,1.4925381,3075.5,3075.1,3.2519]
[1720543362589,1.4925381,3075.3,3075.0,3.0]
[1720543362787,1.4925381,3075.5,3075.1,3.25189]
[1720543363090,1.01976252,3075.7,3075.1,6.50374]
[1720543363091,0.67984168,3075.7,3075.1,6.50374]
[1720543363412,1.4925381,3075.5,3075.2,3.2518]
[1720543363706,0.67984168,3075.7,3075.2,3.2518]
[1720543363921,0.83228836,3075.7,3075.0,3.0]
[1720543364203,1.4925381,3074.7,3074.3,2.4744]
[1720543364360,0.68023797,3075.4,3074.1,3.25297]
[1720543364361,1.4925381,3074.9,3074.1,3.25297]
[1720543364697,1.4925381,3074.9,3073.8,2.4744]
[1720543364698,0.68023797,3074.6,3073.8,2.4744]
[1720543364901,0.68023797,3074.6,3073.8,5.72769]
[1720543364902,0.68023797,3074.4,3073.8,5.72769]
[1720543365097,1.4925381,3074.1,3073.8,2.4744]
[1720543365300,1.4925381,3074.1,3073.6,3.25349]
[1720543365512,1.4925381,3073.9,3073.6,3.25349]
[1720543365710,2.17277607,3074.1,3073.4,3.25365]
[1720543365865,0.8326396,3074.0,3073.4,3.25365]
[1720543366066,0.68023797,3074.0,3073.3,3.25378]
[1720543366262,1.4925381,3073.5,3072.9,6.5084]
[1720543366504,1.4925381,3073.5,3071.9,3.93525934]
[1720543366505,1.4925381,3073.1,3072.2,2.4795]
[1720543366710,1.4925381,3073.1,3072.4,3.25471]
[1720543366914,1.4925381,3073.1,3072.5,3.2546]
[1720543367199,6.40664062,3073.2,3072.6,3.25457]
[1720543367731,1.4925381,3073.1,3072.6,3.25457]
[1720543368616,1.4925381,3073.1,3072.7,3.25446]
[1720543368913,6.40664062,3073.2,3072.6,3.25457]
[1720543368914,6.40664062,3073.2,3072.8,3.25433]
[1720543369416,1.4925381,3073.1,3072.6,3.25457]
[1720543369578,1.4925381,3073.1,3072.7,3.25445]
[1720543369917,6.40664062,3073.2,3072.8,3.25426]
[1720543370075,6.40664062,3073.2,3072.9,3.25424]
[1720543370415,6.40664062,3073.6,3072.9,3.25424]
[1720543370630,6.40664062,3073.6,3072.7,0.994902]
[1720543370631,6.40664062,3073.6,3073.0,3.25414]
[1720543370790,6.40664062,3073.6,3073.3,3.25373]
[1720543371112,1.4925381,3073.9,3073.5,3.25358]
[1720543371319,1.4925381,3073.9,3073.5,0.325358]
[1720543371537,1.4925381,3073.7,3073.4,3.25368]
[1720543372419,1.4925381,3073.7,3073.0,6.69405]
[1720543372677,1.4925381,3073.7,3073.3,3.25377]
[1720543373829,7.89917872,3074.0,3073.3,3.25373]
[1720543374115,1.4925381,3073.8,3073.3,3.25373]
[1720543374278,1.4925381,3073.8,3073.0,6.69406]
[1720543374483,1.4925381,3073.8,3073.1,3.25397]
[1720543375075,1.4925381,3073.5,3072.8,2.3411]
[1720543375280,1.4925381,3073.3,3072.8,3.25426]
[1720543375725,1.4925381,3073.7,3073.1,3.25402]
[1720543376022,1.4925381,3073.7,3073.2,3.25391]
[1720543376178,7.89917872,3074.0,3073.2,3.65562]
[1720543376378,7.89917872,3074.0,3073.2,3.25391]
[1720543376586,1.4925381,3073.5,3073.0,3.25409]
[1720543376789,1.4925381,3073.3,3072.8,4.205204]
[1720543377011,1.4925381,3073.3,3073.0,3.25408]
[1720543377227,1.4925381,3073.6,3072.9,0.7205054]
[1720543377389,1.4925381,3073.6,3072.9,3.25418]
[1720543377894,1.4925381,3073.3,3073.0,3.25407]
[1720543378291,1.4925381,3073.6,3072.8,3.25426]
[1720543378731,1.4925381,3073.6,3073.0,3.25408]
[1720543379039,1.4925381,3073.3,3073.0,3.25408]
[1720543379689,1.4925381,3073.3,3072.8,3.25426]
[1720543379888,1.4925381,3073.3,3072.9,3.25418]
[1720543380127,1.4925381,3073.3,3073.0,3.25408]
[1720543380836,1.4925381,3073.5,3072.8,4.549127]
[1720543381017,1.4925381,3073.5,3072.9,3.25423]
[1720543381536,1.4925381,3073.5,3073.1,3.25404]
[1720543381745,1.4925381,3073.5,3072.9,3.25423]
[1720543381746,6.40664062,3073.6,3073.3,3.25373]
[1720543381892,6.40664062,3073.6,3073.1,3.25398]
[1720543382092,1.4925381,3073.5,3072.9,0.625423]
[1720543382330,6.40664062,3073.6,3073.3,3.25374]
[1720543382530,6.40664062,3073.6,3073.5,3.25361]
[1720543382737,1.4925381,3073.9,3073.6,3.25345]
[1720543383031,1.4925381,3073.9,3073.8,3.2533]
[1720543383638,1.4925381,3073.9,3072.7,3.25446]
[1720543383956,2.2145,3074.0,3073.0,3.25414]
[1720543384167,1.4925381,3073.3,3072.9,3.25415]
[1720543384368,1.4925381,3073.9,3072.9,3.25415]
[1720543384668,1.4925381,3073.7,3072.9,3.25415]
[1720543384869,1.4925381,3073.3,3072.9,3.25415]
[1720543385258,1.4925381,3073.7,3072.9,3.6698036]
[1720543385572,1.4925381,3073.1,3072.7,3.2544]
[1720543385772,1.4925381,3073.1,3072.7,3.25437]
[1720543386069,1.4925381,3073.1,3072.9,3.25425]
[1720543386271,6.40664062,3073.5,3073.0,3.25414]
[1720543386431,6.40664062,3073.5,3072.9,3.25425]
[1720543386842,6.40664062,3073.5,3073.0,2.582]
[1720543387057,7.89917872,3073.5,3073.0,3.1981687]
[1720543387232,7.89917872,3073.5,3073.1,3.25398]
[1720543388071,1.4925381,3073.3,3073.1,3.25398]
[1720543389136,6.40664062,3073.5,3073.1,3.25398]
[1720543389338,6.40664062,3073.5,3073.2,3.25392]
[1720543389639,7.89917872,3073.5,3073.2,3.25392]
[1720543390169,1.4925381,3073.3,3073.2,3.25392]
[1720543390339,7.89917872,3073.5,3073.2,3.25392]
[1720543390525,6.40664062,3073.5,3073.3,3.25378]
[1720543391068,6.40664062,3073.5,3073.4,6.50744]
[1720543391236,7.89917872,3074.0,3073.7,3.25337]
[1720543391440,7.89917872,3074.0,3073.8,0.325337]
[1720543391656,1.4925381,3074.0,3073.5,3.25353]
[1720543391858,1.4925381,3074.0,3073.9,3.25319]
[1720543392447,1.4925381,3074.0,3073.5,3.25353]
[1720543392659,1.4925381,3074.0,3073.6,3.25351]
[1720543393085,1.4925381,3074.0,3073.5,3.25353]
[1720543393682,1.4925381,3074.0,3073.7,3.2534]
[1720543393891,1.4925381,3074.0,3073.5,3.578903]
[1720543394382,1.4925381,3074.0,3073.7,3.2534]
[1720543394559,1.12705788,3073.9,3073.7,3.2534]
[1720543394884,1.4925381,3074.0,3073.7,3.2534]
[1720543395067,1.1270688,3073.9,3073.7,6.5068]
[1720543395392,1.4925381,3074.0,3073.9,3.25319]
[1720543396089,2.61953993,3074.0,3073.9,3.25319]
[1720543396256,1.4925381,3074.0,3073.9,3.25319]
[1720543396467,1.4925381,3074.0,3073.6,3.25344]
[1720543396683,1.4925381,3074.0,3073.7,3.25335]
[1720543397023,1.4925381,3074.0,3073.2,3.837502]
[1720543397024,1.4925381,3074.0,3073.9,3.25319]
[1720543397307,6.40664062,3074.4,3074.3,3.25277]
[1720543397505,2.17029826,3074.9,3074.3,3.25277]
[1720543397506,7.89917872,3074.9,3074.5,3.25253]
[1720543397668,1.12678853,3074.8,3074.5,3.25253]
[1720543397863,1.12678853,3074.7,3074.5,3.25253]
[1720543398064,7.89917872,3074.9,3074.5,3.25253]
[1720543398299,7.89917872,3074.9,3074.5,3.90306]
[1720543398479,7.89917872,3074.9,3074.5,3.25253]
[1720543398778,7.89917872,3074.9,3074.7,3.25232]
[1720543399002,7.89917872,3074.9,3074.7,3.25228]
[1720543399205,7.89917872,3074.9,3074.8,3.25224]
[1720543399403,7.89917872,3074.9,3074.6,3.25237]
[1720543399622,7.89917872,3074.9,3074.4,3.25265]
[1720543400074,7.89917872,3074.9,3074.3,3.25273]
[1720543400430,7.89917872,3074.9,3074.4,3.25265]
[1720543400431,1.4925381,3074.6,3074.4,3.25265]
[1720543400723,6.40664062,3074.9,3074.0,6.50605]
[1720543400724,1.4925381,3074.5,3074.0,6.50605]
[1720543400869,1.4925381,3074.7,3074.0,3.25301]
[1720543401073,1.4925381,3074.3,3074.0,3.25301]
[1720543401389,1.4925381,3074.5,3074.0,6.50603]
[1720543401598,1.4925381,3074.5,3074.0,3.25301]
[1720543401995,1.4925381,3074.3,3074.1,3.25297]
[1720543402198,1.4925381,3074.3,3074.0,3.25301]
[1720543402569,1.4925381,3074.3,3074.0,6.50603]
[1720543402983,1.4925381,3074.3,3074.0,3.25301]
[1720543403307,1.4925381,3074.3,3074.0,6.50603]
[1720543403878,1.4925381,3074.3,3074.0,3.25301]
[1720543404078,1.4925381,3074.5,3074.0,3.25301]
[1720543404575,1.4925381,3074.1,3073.8,5.83523]
[1720543404770,1.4925381,3074.1,3073.6,3.25343]
[1720543404971,1.4925381,3074.3,3073.7,6.25333]
[1720543405521,2.17115488,3074.3,3073.7,6.25333]
[1720543405675,2.17115488,3074.3,3073.8,3.25329]
[1720543405874,1.4925381,3074.3,3073.8,3.25323]
[1720543406512,2.17115488,3074.3,3073.8,3.25323]
[1720543407436,0.82795717,3074.2,3073.8,6.50647]
[1720543407590,0.82795717,3074.2,3073.8,3.25323]
[1720543407973,1.4925381,3074.3,3073.9,3.25318]
[1720543407974,0.67861678,3074.3,3073.9,3.25318]
[1720543408117,6.40664062,3074.4,3074.1,3.25295]
[1720543408301,6.40664062,3074.4,3074.3,3.25277]
[1720543408500,0.68023369,3074.6,3074.3,6.50547]
[1720543408689,0.68023369,3074.6,3074.4,3.25266]
[1720543408889,9.2596461,3074.9,3074.4,3.25266]
[1720543408890,2.17277179,3074.7,3074.4,3.25266]
[1720543409131,0.68023369,3074.7,3074.4,3.25266]
[1720543409635,0.68023369,3074.7,3074.5,3.25245]
[1720543409843,7.08687431,3074.9,3074.7,3.25234]
[1720543409998,6.40664062,3074.9,3074.8,7.087914]
[1720543410199,6.40664062,3074.9,3074.8,6.50448]
[1720543410695,6.40664062,3074.9,3074.8,8.98348]
[1720543411097,6.40664062,3074.9,3074.8,11.98348]
[1720543411326,6.40664062,3074.9,3074.8,13.76527]
[1720543412529,6.40664062,3074.9,3074.8,17.01751]
[1720543412926,6.40664062,3074.9,3074.8,13.76527]
[1720543414739,6.40664062,3074.9,3074.8,17.01751]
[1720543414936,1.4925381,3075.4,3075.3,6.50342]
[1720543414937,6.40664062,3075.4,3075.3,6.50342]
[1720543415094,6.40664062,3075.9,3075.8,3.25118]
[1720543415432,6.40664062,3075.9,3075.8,6.827478]
[1720543415999,6.40664062,3075.9,3075.8,3.25118]
[1720543416545,6.40664062,3075.9,3075.6,3.25134]
[1720543417039,6.40664062,3075.9,3075.4,3.25155]
[1720543417192,7.89917872,3075.9,3075.4,3.25155]
[1720543417390,6.40664062,3075.9,3075.6,3.25133]
[1720543417789,6.40664062,3075.9,3075.7,3.25128]
[1720543417993,6.40664062,3075.9,3075.8,6.50236]
[1720543418211,6.40664062,3075.9,3075.6,3.2513]
[1720543418414,6.40664062,3075.9,3075.8,3.25118]
[1720543418614,1.4925381,3076.1,3075.9,3.25107]
[1720543418829,1.4925381,3076.3,3076.0,3.25094]
[1720543418999,6.40664062,3076.4,3076.2,3.25065]
[1720543419207,6.40664062,3076.4,3076.3,6.5013]
[1720543419439,6.40664062,3076.4,3076.3,7.15143]
[1720543419944,19.57,3077.2,3076.0,6.68994]
[1720543419945,6.40664062,3076.9,3076.7,3.25019]
[1720543420156,6.40664062,3077.3,3077.0,3.24991]
[1720543420850,6.40664062,3077.3,3076.7,3.2502]
[1720543421050,6.40664062,3077.3,3076.4,3.25049]
[1720543421216,1.4925381,3077.0,3076.5,3.25037]
[1720543421544,1.4925381,3077.0,3076.3,3.25058]
[1720543422303,1.4925381,3076.6,3076.1,3.25083]
[1720543422544,1.4925381,3076.6,3076.0,6.439]
[1720543422724,1.4925381,3076.6,3076.1,6.25086]
[1720543422900,1.4925381,3076.6,3076.3,3.25065]
[1720543423452,1.4925381,3076.6,3076.1,9.50164]
[1720543423740,1.4925381,3076.6,3076.1,6.25078]
[1720543424249,1.4925381,3076.4,3076.2,3.25075]
[1720543424453,1.4925381,3076.4,3076.3,3.25065]
[1720543425039,1.4925381,3076.6,3076.3,3.25065]
[1720543425934,1.4925381,3076.6,3076.1,6.25078]
[1720543426416,1.4925381,3076.6,3076.2,3.25075]
[1720543427201,1.4925381,3076.6,3076.1,3.0]
[1720543427405,1.4925381,3076.3,3076.1,6.25084]
[1720543428644,1.4925381,3076.5,3076.1,6.25084]
[1720543429557,1.4925381,3076.3,3076.1,6.25084]
[1720543429859,1.4925381,3076.5,3076.1,6.25078]
[1720543430063,6.40664062,3076.9,3076.2,3.25076]
[1720543430364,1.4925381,3076.7,3076.2,4.219738]
[1720543430525,1.4925381,3076.7,3076.2,3.25076]
[1720543430724,1.4925381,3076.7,3076.1,9.50158]
[1720543431059,1.4925381,3076.7,3076.1,6.25077]
[1720543431274,1.4925381,3076.7,3076.1,3.0]
[1720543431420,1.4925381,3076.5,3076.1,3.0]
[1720543432061,1.4925381,3076.5,3076.1,6.25081]
[1720543432224,1.4925381,3076.5,3076.1,11.037782]
[1720543432657,1.4925381,3076.7,3076.1,7.786972]
[1720543432963,1.4925381,3076.7,3076.3,3.25065]
[1720543433361,1.4925381,3076.7,3076.1,6.25077]
[1720543433664,1.4925381,3076.7,3076.2,3.25069]
[1720543433839,1.4925381,3076.7,3076.3,3.25063]
[1720543434728,1.4925381,3076.7,3076.2,3.25076]
[1720543435127,1.4925381,3076.7,3076.2,6.50145]
[1720543435358,1.4925381,3076.7,3076.2,3.25069]
[1720543435866,1.4925381,3076.7,3076.2,6.50138]
[1720543436069,1.4925381,3076.7,3076.3,3.25062]
[1720543436735,7.89917872,3076.9,3076.0,2.577]
[1720543436940,1.4925381,3076.5,3076.0,3.25087]
[1720543437139,1.4925381,3076.3,3076.0,3.25087]
[1720543437355,6.40664062,3076.9,3075.8,6.5022]
[1720543437556,1.4925381,3076.4,3075.8,3.25109]
[1720543437877,1.4925381,3076.2,3075.6,5.82831]
[1720543438085,1.4925381,3076.2,3075.4,3.25155]
[1720543438086,2.2145,3076.7,3075.4,3.25154]
[1720543438371,2.2145,3076.7,3075.5,3.25149]
[1720543438372,1.4925381,3075.7,3075.5,3.25149]
[1720543439148,1.4925381,3075.7,3075.3,3.25162]
[1720543439363,1.4925381,3075.7,3075.4,3.25155]
[1720543440230,1.4925381,3075.7,3075.3,3.25162]
[1720543440231,6.40664062,3076.2,3075.5,0.650317]
[1720543440430,6.40664062,3076.2,3075.8,3.25113]
[1720543440431,1.12631133,3076.1,3075.8,3.25113]
[1720543440653,6.40664062,3076.2,3075.9,3.25099]
[1720543440867,7.89917872,3076.2,3075.9,3.25099]
[1720543441032,6.40664062,3076.2,3075.2,3.25178]
[1720543441231,1.12626888,3076.1,3075.3,3.0]
[1720543441540,1.4925381,3075.7,3075.3,3.25169]
[1720543442344,6.40664062,3076.2,3075.4,3.2516]
[1720543442542,1.4925381,3075.6,3075.4,3.2516]
[1720543443242,1.4925381,3075.6,3075.2,5.82871]
[1720543443452,1.4925381,3075.6,3075.4,3.2516]
[1720543443632,1.4925381,3075.6,3075.2,2.577]
[1720543443827,6.40664062,3075.9,3074.9,6.25208]
[1720543444029,1.4925381,3075.7,3074.8,5.82922]
[1720543444257,1.12645047,3075.6,3074.6,2.454]
[1720543444464,7.08423895,3075.9,3074.4,5.82965]
[1720543444465,1.4925381,3074.9,3074.4,5.82965]
[1720543444677,6.40664062,3075.2,3074.5,3.25255]
[1720543444880,1.4925381,3074.9,3074.4,2.577]
[1720543445044,6.40664062,3075.2,3074.5,3.2525]
[1720543445249,6.40664062,3075.2,3074.8,3.25218]
[1720543445438,1.4925381,3075.1,3074.8,3.25218]
[1720543445635,18.60664062,3075.5,3074.9,2.2889]
[1720543445941,18.60664062,3075.5,3075.1,6.50367]
[1720543446138,6.40664062,3075.9,3075.5,3.25149]
[1720543446375,6.40664062,3075.9,3075.6,3.25134]
[1720543446892,1.4925381,3075.7,3075.5,3.25149]
[1720543447191,1.4925381,3075.8,3075.1,3.25184]
[1720543447544,1.4925381,3075.8,3074.9,5.541]
[1720543447545,1.12651319,3075.7,3074.9,3.2521]
[1720543447748,1.4925381,3075.1,3074.9,3.2521]
[1720543448050,0.67830612,3075.8,3075.0,3.25197]
[1720543448365,1.12656808,3075.7,3075.0,3.25197]
[1720543448687,1.12656808,3075.6,3075.1,3.25191]
[1720543448888,7.08494674,3075.9,3075.1,3.25191]
[1720543448889,7.89917872,3075.9,3075.1,3.902311]
[1720543449044,7.89917872,3075.9,3075.4,3.25159]
[1720543449045,1.12646184,3075.8,3075.4,3.25159]
[1720543449246,1.4925381,3075.6,3075.4,3.25159]
[1720543450291,1.4925381,3075.6,3075.2,5.82881]
[1720543450465,1.4925381,3075.6,3075.2,2.577]
[1720543450783,1.4925381,3075.6,3075.1,3.25184]
[1720543451268,1.4925381,3075.6,3075.2,3.25181]
[1720543451453,0.67830612,3075.7,3074.8,8.82916]
[1720543451787,8.9166379,3075.9,3074.8,8.82916]
[1720543451788,0.67830612,3075.8,3075.2,3.25175]
[1720543452087,7.08494674,3075.9,3075.4,3.25159]
[1720543452285,6.40664062,3075.9,3075.7,3.25123]
[1720543452582,12.2,3076.2,3075.6,2.577]
[1720543452583,20.09917872,3076.2,3075.9,3.25106]
[1720543452790,1.4925381,3076.2,3075.8,3.25118]
[1720543452945,2.17228818,3076.2,3075.6,5.82832]
[1720543453145,0.82722396,3076.1,3075.6,9.07965]
[1720543453359,1.4925381,3075.9,3075.5,3.25149]
[1720543453564,1.4925381,3075.9,3075.3,5.70011]
[1720543453768,1.4925381,3075.9,3075.4,3.25155]
[1720543454291,1.01962513,3076.1,3075.8,3.25118]
[1720543454292,0.67975008,3076.1,3075.8,3.25118]
[1720543454593,0.82726443,3076.1,3075.9,0.325118]
[1720543454793,0.82729713,3076.0,3075.8,3.25118]
[1720543454950,0.82729713,3076.0,3075.9,3.25108]
[1720543455146,0.67975008,3076.2,3076.1,3.25086]
[1720543455450,0.82728247,3076.2,3076.1,3.25086]
[1720543456075,0.82728862,3076.2,3076.1,3.25086]
[1720543456277,1.01962513,3076.4,3076.1,3.25086]
[1720543456278,0.67975008,3076.4,3076.2,3.25069]
[1720543456479,0.67975008,3076.5,3076.3,3.25065]
[1720543456688,7.0863907,3076.6,3076.3,3.25065]
[1720543457300,0.67975008,3076.6,3076.3,3.25065]
[1720543457650,0.82721107,3076.6,3076.3,3.25065]
[1720543457849,0.14747497,3076.5,3076.3,3.25065]
[1720543458099,0.67975008,3076.7,3076.5,3.25044]
[1720543458292,0.82717674,3076.6,3076.5,3.25044]
[1720543458593,0.67975008,3076.8,3076.5,3.25044]
[1720543458892,13.21962513,3076.9,3076.5,3.25044]
[1720543458893,12.87975008,3076.9,3076.5,3.25044]
[1720543459074,2.31967362,3076.8,3076.5,3.25044]
[1720543459285,1.4925381,3076.8,3076.5,3.25044]
[1720543459514,0.82827016,3076.7,3076.5,3.25044]
[1720543459713,0.68083948,3076.7,3076.5,3.25044]
[1720543459879,0.68081807,3076.7,3076.5,3.25044]
[1720543460083,0.68081807,3076.7,3076.5,6.50088]
[1720543460389,1.02122711,3076.9,3076.8,3.25013]
[1720543460390,0.68081807,3076.9,3076.8,3.25013]
[1720543460624,0.14737236,3076.9,3076.8,3.25013]
[1720543460792,0.14736703,3076.9,3076.8,3.25013]
[1720543461003,1.4925381,3076.8,3076.7,3.25022]
[1720543462322,6.40664062,3077.0,3076.8,3.2501]
[1720543462483,0.68081807,3077.1,3077.0,6.49982]
[1720543462681,6.40664062,3077.3,3077.2,3.2497]
[1720543462881,1.4925381,3077.4,3077.3,3.2496]
[1720543463628,1.4925381,3077.4,3077.0,4.406592]
[1720543463919,1.4925381,3077.4,3076.8,6.50013]
[1720543463920,1.4925381,3077.2,3076.8,6.50013]
[1720543464093,1.4925381,3077.2,3076.8,3.25006]
[1720543464283,1.4925381,3077.2,3076.5,2.612844]
[1720543464284,0.68081807,3077.4,3077.3,3.2496]
[1720543464483,7.08745869,3077.8,3077.5,3.24939]
[1720543464723,6.40664062,3077.8,3077.7,3.24917]
[1720543465289,6.40664062,3077.8,3077.7,7.634665]
[1720543465709,6.40664062,3077.8,3077.7,10.634665]
[1720543466132,6.40664062,3077.8,3077.7,7.385495]
[1720543466397,6.40664062,3077.8,3077.7,6.24917]
[1720543467718,6.40664062,3077.8,3077.7,9.49834]
[1720543469105,1.4925381,3078.0,3077.9,3.24896]
[1720543470428,1.4925381,3077.8,3077.5,5.82633]
[1720543470615,1.4925381,3078.0,3077.4,3.24947]
[1720543470813,1.4925381,3077.7,3077.4,3.24947]
[1720543471138,1.4925381,3078.0,3077.5,2.577]
[1720543471296,1.4925381,3078.0,3077.7,3.24907]
[1720543471613,1.4925381,3078.0,3077.8,3.24905]
[1720543473535,1.4925381,3077.8,3077.6,3.24921]
[1720543473843,1.4925381,3077.8,3077.5,5.82632]
[1720543474217,1.4925381,3077.8,3077.7,3.24917]
[1720543474807,1.4925381,3077.6,3077.5,2.577]
[1720543475138,1.4925381,3077.8,3077.6,3.24925]
[1720543475657,1.4925381,3078.0,3077.9,6.49792]
[1720543475802,1.4925381,3078.0,3077.9,3.24896]
[1720543476640,1.4925381,3078.0,3077.5,2.577]
[1720543476846,1.4925381,3077.8,3077.5,5.82632]
[1720543477357,6.40664062,3078.3,3077.5,5.82632]
[1720543477358,1.4925381,3077.6,3077.5,2.577]
[1720543477650,1.4925381,3077.6,3077.4,3.24948]
[1720543478217,6.40664062,3078.3,3077.3,3.24958]
[1720543478218,1.4925381,3077.4,3077.3,3.24958]
[1720543478419,1.4925381,3077.4,3077.3,6.24958]
[1720543479577,6.40664062,3078.3,3077.4,3.24943]
[1720543479578,1.4925381,3077.6,3077.4,3.24943]
[1720543479721,1.4925381,3078.0,3077.5,2.577]
[1720543480048,1.4925381,3078.0,3077.7,3.24907]
[1720543480252,1.4925381,3078.0,3077.5,4.8402]
[1720543480478,1.4925381,3078.0,3077.7,3.24912]
[1720543480823,1.4925381,3077.8,3077.6,3.24926]
[1720543481045,1.4925381,3077.8,3077.5,5.82632]
[1720543481633,1.4925381,3078.0,3077.5,3.12419291]
[1720543481833,1.4925381,3078.0,3077.8,3.24904]
[1720543482865,1.4925381,3078.0,3077.9,6.49792]
[1720543483029,1.4925381,3078.0,3077.9,9.724712]
[1720543483751,1.4925381,3078.2,3078.1,3.24875]
[1720543486020,6.40664062,3078.3,3078.0,3.24886]
[1720543486021,6.40664062,3078.3,3078.2,3.24865]
[1720543486831,6.40664062,3078.3,3078.2,6.4973]
[1720543487060,27.46917872,3078.8,3078.5,3.24827]
[1720543487264,1.4925381,3079.0,3078.7,3.24812]
[1720543487430,1.4925381,3079.0,3078.8,3.24801]
[1720543488230,1.4925381,3079.0,3078.9,3.24791]
[1720543489373,7.89917872,3079.2,3078.9,3.24791]
[1720543489599,1.4925381,3079.0,3078.9,3.24791]
[1720543489768,7.89917872,3079.2,3079.1,3.2477]
[1720543490143,7.89917872,3079.2,3079.0,3.2478]
[1720543490388,6.40664062,3079.2,3079.1,5.7145]
[1720543490699,6.40664062,3079.2,3079.1,8.2915]
[1720543491174,6.40664062,3079.2,3079.1,11.5392]
[1720543491376,6.40664062,3079.2,3079.1,9.0724]
[1720543491677,6.40664062,3079.2,3079.1,5.8247]
[1720543491848,6.40664062,3079.2,3079.1,6.731946]
[1720543492940,1.4925381,3079.2,3079.1,2.577]
[1720543493144,18.60664062,3079.7,3078.8,3.24792]
[1720543493145,1.4925381,3079.0,3078.8,3.24792]
[1720543493372,1.4925381,3079.0,3078.9,0.582492]
[1720543493742,1.4925381,3079.0,3078.9,3.830402]
[1720543494439,1.4925381,3079.2,3078.9,3.830402]
[1720543494669,1.4925381,3079.4,3079.0,3.9556222]
[1720543495062,1.4925381,3079.4,3079.0,7.2033722]
[1720543495260,1.4925381,3079.4,3079.1,2.577]
[1720543495468,1.4925381,3079.4,3079.2,3.24759]
[1720543497066,1.4925381,3079.2,3079.1,2.577]
[1720543497969,1.4925381,3079.4,3079.1,5.8247]
[1720543498173,1.4925381,3079.4,3079.2,3.24759]
[1720543498373,1.4925381,3079.4,3079.2,4.154832]
[1720543498601,1.4925381,3079.4,3079.2,3.24759]
[1720543499362,6.40664062,3079.7,3079.1,2.577]
[1720543499363,1.4925381,3079.6,3079.1,2.577]
[1720543499997,1.4925381,3079.4,3079.2,3.24749]
[1720543500205,1.4925381,3079.4,3079.3,3.24749]
[1720543500781,1.4925381,3079.4,3079.2,0.582449]
[1720543500782,1.48391716,3079.4,3079.2,0.582449]
[1720543501007,1.48391716,3079.4,3079.1,5.82467]
[1720543501173,6.40664062,3079.7,3079.1,5.82467]
[1720543501174,1.48391716,3079.2,3079.1,5.82467]
[1720543502179,1.48391716,3079.2,3078.8,3.24795]
[1720543502506,0.67769139,3079.6,3078.7,5.82509]
[1720543502711,0.67769139,3079.6,3078.7,5.82507]
[1720543502712,1.12515659,3079.5,3078.7,5.82507]
[1720543503010,1.48391716,3079.2,3078.9,6.49576]
[1720543503168,1.48391716,3079.4,3079.1,2.577]
[1720543503369,1.48391716,3079.6,3079.4,3.24737]
[1720543503590,1.48391716,3079.6,3079.5,3.24728]
[1720543504580,1.48391716,3079.4,3079.1,2.577]
[1720543504976,1.64591716,3079.4,3079.3,3.24749]
[1720543505579,0.162,3079.4,3079.3,3.24749]
[1720543505775,0.162,3079.4,3079.3,7.402187]
[1720543505977,0.162,3079.4,3079.3,9.687687]
[1720543506177,0.162,3079.4,3079.3,6.440197]
[1720543507081,1.64591716,3079.4,3079.3,4.154697]
[1720543507474,0.162,3079.4,3079.3,4.154697]
[1720543507884,1.64591716,3079.4,3079.1,5.8246]
[1720543508243,0.162,3079.4,3078.7,5.82503]
[1720543508416,1.48391716,3079.2,3078.7,6.49606]
[1720543508624,1.48391716,3078.9,3078.7,3.24803]
[1720543509079,1.48391716,3079.2,3079.0,3.24779]
[1720543509384,1.48391716,3079.2,3078.8,3.24796]
[1720543509600,1.48391716,3078.8,3078.3,3.24848]
[1720543509790,1.48391716,3078.6,3078.5,3.24829]
[1720543510192,1.48391716,3078.6,3078.4,3.24843]
[1720543510945,1.48391716,3078.6,3078.3,3.50617]
[1720543511288,1.48391716,3078.4,3078.3,3.50617]
[1720543511501,1.48391716,3078.4,3078.2,2.577]
[1720543511689,0.6781637,3078.8,3077.7,3.24911]
[1720543511690,1.48391716,3078.2,3077.7,3.24911]